bitfinex/quotes_BTCUSD_20240815
["timestamp","ask_amount","ask_price","bid_price","bid_amount"]
[1723716458795,0.002823,58504.0,58503.0,0.54345299]
[1723716460488,0.002823,58504.0,58503.0,0.88531499]
[1723716460707,0.086123,58504.0,58503.0,0.88531499]
[1723716461308,0.086123,58504.0,58503.0,0.54345299]
[1723716461511,0.086123,58504.0,58503.0,0.88531499]
[1723716461737,0.002823,58504.0,58503.0,0.88531499]
[1723716474106,0.002823,58504.0,58503.0,0.54345299]
[1723716475306,0.002823,58504.0,58503.0,0.88531499]
[1723716475985,0.002823,58504.0,58503.0,0.54345299]
[1723716476366,0.05397943,58504.0,58503.0,0.54345299]
[1723716477242,0.002823,58504.0,58503.0,0.54345299]
[1723716478063,1.11339271,58504.0,58503.0,0.03065999]
[1723716478253,2.1050654,58504.0,58503.0,0.03065999]
[1723716478463,0.1474,58491.0,58488.0,0.0009053]
[1723716478662,0.05123408,58489.0,58488.0,0.0009053]
[1723716478886,0.07685113,58490.0,58488.0,0.0009053]
[1723716479030,0.42083417,58491.0,58488.0,0.0009053]
[1723716479031,0.07685113,58489.0,58488.0,0.0009053]
[1723716479270,0.39074017,58489.0,58488.0,0.0009053]
[1723716479470,1.28520755,58489.0,58488.0,0.0009053]
[1723716479740,1.28520755,58489.0,58488.0,0.0129053]
[1723716479741,1.16790755,58489.0,58488.0,0.0129053]
[1723716479948,1.16790755,58489.0,58488.0,0.0009053]
[1723716480263,1.50985155,58489.0,58488.0,0.0049053]
[1723716480643,1.32160981,58489.0,58488.0,0.0009053]
[1723716480777,1.32160981,58489.0,58488.0,0.0019053]
[1723716480978,1.32360981,58489.0,58488.0,0.0019053]
[1723716481564,0.82796355,58489.0,58488.0,0.0019053]
[1723716481826,0.46243701,58489.0,58488.0,0.0019053]
[1723716482025,1.14690755,58489.0,58488.0,0.0019053]
[1723716482229,1.66040609,58489.0,58488.0,0.01419516]
[1723716482433,1.68340609,58489.0,58488.0,0.0019053]
[1723716482605,1.34146209,58489.0,58488.0,0.0019053]
[1723716483217,0.99951809,58489.0,58488.0,0.0019053]
[1723716483592,0.99951809,58489.0,58488.0,0.01435329]
[1723716483807,0.99951809,58489.0,58488.0,0.0019053]
[1723716484001,0.82854609,58489.0,58488.0,0.01435329]
[1723716484211,0.50909381,58489.0,58488.0,0.0019053]
[1723716484408,0.38113701,58489.0,58488.0,0.18532829]
[1723716484601,0.38113701,58489.0,58488.0,0.1728803]
[1723716484856,0.38113701,58489.0,58488.0,0.18542212]
[1723716485035,0.38113701,58489.0,58488.0,0.01444712]
[1723716485036,0.55210901,58489.0,58488.0,0.01444712]
[1723716485416,1.07525655,58489.0,58488.0,0.01444712]
[1723716485673,0.63100901,58489.0,58488.0,0.01444712]
[1723716486445,0.73328381,58489.0,58488.0,0.01444712]
[1723716486851,0.56236295,58489.0,58488.0,0.01444712]
[1723716487448,0.0809,58489.0,58488.0,0.01444712]
[1723716487688,0.251872,58489.0,58488.0,0.01444712]
[1723716487905,0.0809,58489.0,58488.0,0.01444712]
[1723716488459,0.002,58489.0,58488.0,0.01444712]
[1723716488652,0.0786712,58489.0,58488.0,0.18542212]
[1723716489063,0.0786712,58489.0,58488.0,0.01444712]
[1723716490109,0.42119774,58489.0,58488.0,0.01444712]
[1723716490517,0.76314174,58489.0,58488.0,0.01444712]
[1723716492615,0.68647054,58489.0,58488.0,0.01444712]
[1723716493792,0.73755909,58489.0,58488.0,0.01444712]
[1723716494376,0.68647054,58489.0,58488.0,0.01444712]
[1723716495757,0.17355454,58489.0,58488.0,0.01444712]
[1723716495976,0.17355454,58489.0,58488.0,0.18542212]
[1723716495977,0.002,58489.0,58488.0,0.18542212]
[1723716496098,0.002,58489.0,58488.0,0.93492212]
[1723716496301,0.002,58489.0,58488.0,0.59297212]
[1723716499163,0.002,58489.0,58488.0,0.18542212]
[1723716499417,0.002,58489.0,58488.0,0.01444712]
[1723716499418,0.48782654,58489.0,58488.0,0.01444712]
[1723716499586,0.82977054,58489.0,58488.0,0.01444712]
[1723716499788,1.17171454,58489.0,58488.0,0.0019053]
[1723716499987,0.82977054,58489.0,58488.0,0.0019053]
[1723716500191,0.85277054,58489.0,58488.0,0.0019053]
[1723716500368,0.85277054,58489.0,58488.0,0.0145092]
[1723716500578,0.99522804,58489.0,58488.0,0.0019053]
[1723716500801,0.99522804,58489.0,58488.0,0.0145092]
[1723716501008,0.99522804,58489.0,58488.0,0.0019053]
[1723716501259,0.25285454,58489.0,58488.0,0.0145092]
[1723716501416,0.25285454,58489.0,58488.0,0.0019053]
[1723716501619,0.42382654,58489.0,58488.0,0.0145092]
[1723716501822,0.42382654,58489.0,58488.0,0.0019053]
[1723716502029,0.42382654,58489.0,58488.0,0.0145092]
[1723716502226,0.42382654,58489.0,58488.0,0.0019053]
[1723716502437,0.42382654,58489.0,58488.0,0.0145092]
[1723716502612,0.42382654,58489.0,58488.0,0.0019053]
[1723716502814,0.42382654,58489.0,58488.0,0.0145092]
[1723716503023,0.42382654,58489.0,58488.0,0.0019053]
[1723716503219,0.76577054,58489.0,58488.0,0.0145092]
[1723716503421,0.78877054,58489.0,58488.0,0.0019053]
[1723716503642,0.44682654,58489.0,58488.0,0.0145092]
[1723716503847,0.78877054,58489.0,58488.0,0.0019053]
[1723716504388,0.78877054,58489.0,58488.0,0.0145092]
[1723716504568,0.78877054,58489.0,58488.0,0.0019053]
[1723716504826,0.78877054,58489.0,58488.0,0.0145092]
[1723716505048,0.78877054,58489.0,58488.0,0.0019053]
[1723716505281,0.78877054,58489.0,58488.0,0.0145092]
[1723716505485,0.44682654,58489.0,58488.0,0.0019053]
[1723716506008,0.44682654,58489.0,58488.0,0.0145092]
[1723716506212,0.44682654,58489.0,58488.0,0.0019053]
[1723716506421,0.44682654,58489.0,58488.0,0.0145092]
[1723716506624,0.25285454,58489.0,58488.0,0.1728803]
[1723716506826,0.17355454,58489.0,58488.0,0.1854842]
[1723716507051,0.17355454,58489.0,58488.0,0.0145092]
[1723716507361,0.002,58489.0,58488.0,1.3543342]
[1723716508428,0.002,58489.0,58488.0,1.3533342]
[1723716508847,0.05108069,58501.0,58500.0,0.17094]
[1723716509064,0.05108069,58502.0,58501.0,0.170937]
[1723716509518,0.05108069,58502.0,58501.0,0.52539054]
[1723716509719,0.05190369,58503.0,58501.0,0.01257954]
[1723716510055,0.05108069,58502.0,58501.0,0.170935]
[1723716510375,0.06008069,58502.0,58501.0,0.171935]
[1723716510572,0.05108069,58502.0,58501.0,0.18351454]
[1723716510799,0.24899857,58503.0,58501.0,0.18351454]
[1723716511067,0.25899857,58503.0,58501.0,0.18451454]
[1723716511421,0.07662103,58502.0,58501.0,0.18451454]
[1723716511605,0.25899857,58503.0,58501.0,0.18451454]
[1723716511878,0.07662103,58502.0,58501.0,0.18451454]
[1723716512143,0.25899857,58503.0,58501.0,0.18451454]
[1723716512340,0.07662103,58502.0,58501.0,0.18451454]
[1723716512859,0.07665732,58502.0,58501.0,0.18351454]
[1723716513032,0.07665732,58502.0,58501.0,0.18451454]
[1723716513235,0.09265732,58502.0,58501.0,0.18451454]
[1723716514448,0.18755454,58502.0,58501.0,0.01357954]
[1723716514666,1.64758904,58502.0,58501.0,1e-08]
[1723716514861,1.17795883,58502.0,58501.0,0.0129839]
[1723716515063,1.17795883,58502.0,58501.0,1e-08]
[1723716515715,1.69081064,58502.0,58501.0,1e-08]
[1723716515998,1.69081064,58502.0,58488.0,0.0009053]
[1723716515999,0.83614064,58502.0,58488.0,0.0009053]
[1723716516205,1.337604,58489.0,58488.0,0.0009053]
[1723716516414,1.88826083,58489.0,58488.0,0.0009053]
[1723716516621,2.06467886,58489.0,58488.0,0.0009053]
[1723716516833,2.08281537,58489.0,58488.0,0.0009053]
[1723716516999,1.8942894,58489.0,58488.0,0.0009053]
[1723716517341,1.74087137,58489.0,58488.0,0.0009053]
[1723716517858,1.74087137,58489.0,58488.0,0.0019053]
[1723716518100,1.74087137,58489.0,58488.0,0.0009053]
[1723716518577,1.56931683,58489.0,58488.0,0.0009053]
[1723716519218,1.58331683,58489.0,58488.0,0.0009053]
[1723716519436,1.59731683,58489.0,58488.0,0.0009053]
[1723716519676,1.58331683,58489.0,58488.0,0.0009053]
[1723716519905,1.59731683,58489.0,58488.0,0.0009053]
[1723716520101,1.76887137,58489.0,58488.0,0.0009053]
[1723716520323,1.9222894,58489.0,58488.0,0.0009053]
[1723716521160,1.5150454,58489.0,58488.0,0.0009053]
[1723716521391,1.34349086,58489.0,58488.0,0.0009053]
[1723716522119,0.92604686,58489.0,58488.0,0.0009053]
[1723716522363,0.77262883,58489.0,58488.0,0.0009053]
[1723716522621,0.77262883,58489.0,58488.0,0.00966538]
[1723716523316,0.92619786,58489.0,58488.0,0.00966538]
[1723716523648,0.77262883,58489.0,58488.0,0.00966538]
[1723716524175,1.26814186,58489.0,58488.0,0.00966538]
[1723716524389,1.62807137,58489.0,58488.0,0.0009053]
[1723716524591,2.23446321,58489.0,58488.0,0.0009053]
[1723716524796,2.29936321,58489.0,58488.0,0.0009053]
[1723716525791,2.2994721,58489.0,58488.0,0.0009053]
[1723716526602,2.06301756,58489.0,58488.0,0.0009053]
[1723716526806,2.06299638,58489.0,58488.0,0.0009053]
[1723716527207,1.13263638,58489.0,58488.0,0.0009053]
[1723716527409,0.60176413,58489.0,58488.0,0.0009053]
[1723716528052,0.59966199,58489.0,58488.0,0.0009053]
[1723716528365,0.40720959,58489.0,58488.0,0.94291256]
[1723716528566,0.40720959,58489.0,58488.0,0.9340803]
[1723716528777,0.40720959,58489.0,58488.0,1.34706256]
[1723716528778,0.07920411,58489.0,58488.0,1.34706256]
[1723716528979,0.014,58489.0,58488.0,1.34706256]
[1723716529194,0.09080617,58489.0,58488.0,1.34706256]
[1723716529398,0.08980617,58489.0,58488.0,1.34706256]
[1723716529570,0.10380617,58489.0,58488.0,1.34706256]
[1723716529806,0.014,58489.0,58488.0,1.34706256]
[1723716530002,0.05119915,58489.0,58488.0,1.34706256]
[1723716530178,0.07680617,58491.0,58489.0,0.341944]
[1723716530179,0.05119915,58491.0,58489.0,0.341944]
[1723716530409,0.07680617,58491.0,58490.0,0.512907]
[1723716530615,0.07680617,58491.0,58490.0,0.86367099]
[1723716531214,0.07680617,58492.0,58491.0,0.85483]
[1723716531665,0.07680617,58492.0,58491.0,0.86365285]
[1723716533037,0.48553284,58492.0,58491.0,0.52172085]
[1723716533245,0.48853284,58492.0,58491.0,0.86365285]
[1723716533639,0.38612461,58492.0,58491.0,0.86365285]
[1723716533844,0.48853284,58492.0,58491.0,0.86365285]
[1723716534272,0.66008738,58492.0,58491.0,0.00882285]
[1723716534421,0.55767915,58492.0,58491.0,0.170966]
[1723716534620,0.55767915,58492.0,58491.0,0.17978885]
[1723716534621,0.25534624,58492.0,58491.0,0.17978885]
[1723716534834,0.55767896,58492.0,58491.0,0.17978885]
[1723716535051,0.6600692,58492.0,58491.0,0.17978885]
[1723716535282,0.55767896,58492.0,58491.0,0.17978885]
[1723716535494,0.66006977,58492.0,58491.0,0.17978885]
[1723716535886,0.48851277,58492.0,58491.0,0.17978885]
[1723716536058,0.38612442,58492.0,58491.0,0.17978885]
[1723716536259,0.10939,58492.0,58491.0,0.17978885]
[1723716536524,0.48851442,58492.0,58491.0,0.52172085]
[1723716536939,0.38612442,58492.0,58491.0,0.17978885]
[1723716537154,0.51413686,58492.0,58491.0,0.17978885]
[1723716537409,0.51411574,58492.0,58491.0,0.17978885]
[1723716537633,0.51413855,58492.0,58491.0,0.17978885]
[1723716538233,0.38614708,58492.0,58491.0,0.17978885]
[1723716538366,0.51413855,58492.0,58491.0,0.17978885]
[1723716538572,0.38614708,58492.0,58491.0,0.52172085]
[1723716538803,0.10939083,58492.0,58491.0,0.52172085]
[1723716538988,0.48853791,58492.0,58491.0,0.52172085]
[1723716539184,0.08379246,58492.0,58491.0,0.86365285]
[1723716539400,0.007,58492.0,58491.0,1.00885285]
[1723716539606,0.05819232,58492.0,58491.0,1.00885285]
[1723716539804,0.05819232,58492.0,58491.0,1.35078485]
[1723716540059,0.007,58492.0,58491.0,1.35078485]
[1723716541448,0.004,58492.0,58491.0,1.35078485]
[1723716542252,0.004,58492.0,58491.0,1.69271685]
[1723716542505,0.05117694,58498.0,58497.0,1.196639]
[1723716542723,0.05117694,58498.0,58497.0,1.332439]
[1723716542926,0.05117694,58498.0,58497.0,0.99934029]
[1723716543935,0.05617694,58498.0,58497.0,0.99934029]
[1723716544372,0.05699994,58498.0,58497.0,0.99934029]
[1723716544556,0.005823,58498.0,58497.0,0.99934029]
[1723716544763,0.009823,58498.0,58497.0,0.99934029]
[1723716544989,0.009823,58498.0,58497.0,0.52164329]
[1723716545180,0.009823,58498.0,58497.0,0.86354029]
[1723716546170,0.16973492,58498.0,58497.0,0.00879829]
[1723716546371,0.39185786,58498.0,58497.0,0.00879829]
[1723716546598,0.22091186,58498.0,58495.0,0.170954]
[1723716547377,0.22091186,58498.0,58493.0,0.341918]
[1723716547378,0.16041186,58498.0,58496.0,0.170951]
[1723716547579,0.08501186,58498.0,58497.0,0.17971863]
[1723716547777,0.08101186,58498.0,58497.0,0.17971863]
[1723716547983,0.05699994,58498.0,58497.0,0.17971863]
[1723716548180,0.06099994,58498.0,58497.0,0.17971863]
[1723716548584,0.05699994,58498.0,58497.0,0.17971863]
[1723716549049,0.06099994,58498.0,58497.0,0.17971863]
[1723716549208,0.05599994,58498.0,58497.0,0.17971863]
[1723716549800,0.06099994,58498.0,58497.0,0.17971863]
[1723716550011,0.05599994,58498.0,58497.0,0.17971863]
[1723716550411,0.06099994,58498.0,58497.0,0.17971863]
[1723716553292,0.23194594,58498.0,58497.0,0.00877063]
[1723716553492,0.06099994,58498.0,58496.0,0.170951]
[1723716553689,0.06099994,58498.0,58497.0,0.00875293]
[1723716553933,0.06099994,58498.0,58497.0,0.17970093]
[1723716554336,0.05699994,58498.0,58497.0,0.17970093]
[1723716554714,0.06099994,58498.0,58497.0,0.17970093]
[1723716555123,0.05699994,58498.0,58497.0,0.17970093]
[1723716555348,0.05695294,58498.0,58497.0,0.17970093]
[1723716555574,0.06095294,58498.0,58497.0,0.00875293]
[1723716556611,0.009823,58498.0,58497.0,0.17970093]
[1723716556812,0.009823,58498.0,58497.0,0.00875293]
[1723716557018,0.11208288,58498.0,58497.0,0.00875293]
[1723716557216,0.49118599,58498.0,58497.0,0.00875293]
[1723716557936,0.49118147,58498.0,58497.0,0.00875293]
[1723716558352,0.38892611,58498.0,58497.0,0.00875293]
[1723716558565,0.38892611,58498.0,58495.0,0.170954]
[1723716558866,0.009823,58498.0,58496.0,0.00875606]
[1723716559067,0.48137095,58497.0,58495.0,0.170954]
[1723716559301,0.07669182,58496.0,58495.0,0.170954]
[1723716559777,0.07669556,58496.0,58495.0,0.170954]
[1723716561615,0.07969556,58496.0,58495.0,0.170954]
[1723716561816,0.07969701,58496.0,58495.0,0.170954]
[1723716562049,0.003,58496.0,58495.0,0.170954]
[1723716562257,0.38311491,58496.0,58495.0,0.170954]
[1723716562461,0.48537566,58496.0,58495.0,0.170954]
[1723716562813,0.48537566,58496.0,58494.0,0.170956]
[1723716563014,0.07670352,58495.0,58494.0,0.170956]
[1723716563217,0.07670352,58495.0,58494.0,0.512871]
[1723716563599,0.10626075,58496.0,58495.0,0.170954]
[1723716564147,0.48537967,58496.0,58495.0,0.170954]
[1723716564573,0.48137967,58496.0,58495.0,0.170954]
[1723716564752,0.10226075,58496.0,58495.0,0.170954]
[1723716565563,0.10626075,58496.0,58495.0,0.170954]
[1723716565768,0.48537967,58496.0,58495.0,0.170954]
[1723716565982,0.48242045,58496.0,58495.0,0.170954]
[1723716566333,0.48542045,58496.0,58495.0,0.170954]
[1723716566537,0.38611892,58496.0,58495.0,0.170954]
[1723716566649,0.51394485,58496.0,58495.0,0.170954]
[1723716566860,0.51394485,58496.0,58492.0,0.341922]
[1723716567072,0.4814353,58495.0,58494.0,0.170956]
[1723716567671,0.37911892,58495.0,58494.0,0.170956]
[1723716568150,0.37911892,58495.0,58492.0,0.341922]
[1723716568345,0.1947,58493.0,58488.0,0.3428503]
[1723716568541,0.07675665,58491.0,58490.0,0.170967]
[1723716568830,0.07675665,58491.0,58490.0,0.512905]
[1723716569310,0.07675665,58491.0,58490.0,0.170967]
[1723716569761,0.07675665,58491.0,58490.0,0.513905]
[1723716570132,0.07675665,58491.0,58490.0,0.855843]
[1723716570331,0.12782593,58494.0,58490.0,0.855843]
[1723716570332,0.10232711,58493.0,58492.0,0.170963]
[1723716570533,0.379121,58493.0,58492.0,0.170963]
[1723716570765,0.12782593,58494.0,58492.0,0.170963]
[1723716570961,0.12782593,58494.0,58492.0,0.17977371]
[1723716571678,0.50694693,58493.0,58492.0,0.17977371]
[1723716571885,0.12782593,58493.0,58492.0,0.52270071]
[1723716572090,0.50894413,58494.0,58493.0,0.512881]
[1723716572287,0.05320762,58494.0,58493.0,1.053802]
[1723716572484,0.002,58494.0,58493.0,1.40453058]
[1723716572691,0.0542212,58494.0,58493.0,1.40453058]
[1723716572924,0.0522212,58494.0,58493.0,1.40453058]
[1723716573152,0.05122141,58494.0,58493.0,1.28723058]
[1723716573540,0.10244282,58495.0,58494.0,1.196702]
[1723716573955,0.07684964,58495.0,58494.0,1.97937598]
[1723716574179,0.000823,58498.0,58497.0,0.170948]
[1723716574383,0.000823,58498.0,58497.0,1.71637081]
[1723716574585,0.000823,58498.0,58497.0,1.72562965]
[1723716574792,0.000823,58498.0,58497.0,2.06552665]
[1723716574990,0.000823,58498.0,58497.0,1.97974938]
[1723716575603,0.001823,58498.0,58497.0,1.98074938]
[1723716575777,0.000823,58498.0,58497.0,1.97974938]
[1723716575981,0.000823,58498.0,58497.0,1.86544938]
[1723716575982,0.001823,58498.0,58497.0,1.86544938]
[1723716576159,0.000823,58503.0,58502.0,1.682206]
[1723716576359,0.000823,58503.0,58502.0,1.95376054]
[1723716576562,0.000823,58503.0,58502.0,2.30674417]
[1723716576973,0.000823,58503.0,58502.0,1.96287617]
[1723716577181,0.000823,58503.0,58502.0,1.96487617]
[1723716577985,0.001823,58503.0,58502.0,1.96587617]
[1723716578213,0.002823,58503.0,58502.0,1.96787617]
[1723716579399,0.002823,58503.0,58502.0,1.96587617]
[1723716581055,0.002823,58503.0,58502.0,1.96787617]
[1723716582199,0.002823,58503.0,58502.0,1.97786303]
[1723716585554,0.002823,58503.0,58502.0,1.97586303]
[1723716586201,0.002823,58503.0,58502.0,1.97786303]
[1723716586683,0.002823,58503.0,58502.0,1.97586303]
[1723716588883,0.002823,58503.0,58502.0,1.97786303]
[1723716590805,0.002823,58503.0,58502.0,1.97586303]
[1723716591208,0.002823,58503.0,58502.0,1.46244049]
[1723716591432,0.002823,58503.0,58502.0,0.24624963]
[1723716591675,0.002823,58503.0,58502.0,0.58811763]
[1723716591805,0.002823,58503.0,58502.0,1.27185363]
[1723716592253,0.002823,58503.0,58502.0,0.52191763]
[1723716592254,0.079923,58503.0,58502.0,0.52191763]
[1723716592726,0.079923,58503.0,58502.0,0.52491763]
[1723716593131,0.079923,58503.0,58502.0,0.52391763]
[1723716593875,0.079923,58503.0,58502.0,0.86578563]
[1723716594678,0.079923,58503.0,58502.0,0.86378563]
[1723716594886,0.079923,58503.0,58502.0,0.52291763]
[1723716595401,0.079923,58503.0,58502.0,0.52191763]
[1723716595602,0.079923,58503.0,58502.0,0.52491763]
[1723716595967,0.079923,58503.0,58502.0,0.86678563]
[1723716597638,0.079923,58503.0,58502.0,0.52491763]
[1723716598807,0.079923,58503.0,58502.0,0.01211563]
[1723716599079,0.421785,58503.0,58502.0,0.01211563]
[1723716599224,0.592716,58503.0,58502.0,0.01211563]
[1723716599428,0.934578,58503.0,58502.0,0.01211563]
[1723716599690,1.04565721,58503.0,58502.0,0.003]
[1723716599885,1.04444613,58503.0,58502.0,0.003]
[1723716600088,1.65748149,58503.0,58502.0,0.003]
[1723716600285,0.654029,58499.0,58498.0,0.0009053]
[1723716600510,1.21854197,58499.0,58498.0,0.0009053]
[1723716600685,1.33902408,58499.0,58498.0,0.0009053]
[1723716600892,0.89965542,58499.0,58498.0,0.0009053]
[1723716601329,0.84858354,58499.0,58498.0,0.0009053]
[1723716602182,0.1482,58499.0,58498.0,0.1718513]
[1723716602591,0.1482,58499.0,58498.0,0.18165835]
[1723716602843,0.1572,58499.0,58498.0,0.18165835]
[1723716603016,0.1572,58499.0,58498.0,0.01071235]
[1723716604237,0.1572,58499.0,58498.0,0.18165835]
[1723716604555,0.49969754,58499.0,58498.0,0.01071235]
[1723716604755,0.84158354,58499.0,58498.0,0.0009053]
[1723716606552,1.20646954,58499.0,58498.0,0.0009053]
[1723716606759,1.25754626,58499.0,58498.0,0.0009053]
[1723716606935,1.4291008,58499.0,58498.0,0.0009053]
[1723716607560,1.37802408,58499.0,58498.0,0.0009053]
[1723716608190,0.35175454,58499.0,58498.0,0.0009053]
[1723716608403,0.0972,58499.0,58498.0,0.0009053]
[1723716608634,0.016,58499.0,58498.0,0.52355035]
[1723716608807,0.016,58499.0,58498.0,0.5137433]
[1723716608979,0.016,58499.0,58498.0,0.52358991]
[1723716611736,0.016,58499.0,58498.0,0.86548191]
[1723716612824,0.016,58499.0,58498.0,1.20737391]
[1723716613027,0.016,58499.0,58498.0,1.28677391]
[1723716614211,0.0984,58499.0,58498.0,0.52358991]
[1723716614416,0.0984,58499.0,58498.0,0.01075191]
[1723716614719,0.0984,58499.0,58498.0,0.0009053]
[1723716615117,0.0984,58499.0,58498.0,0.01067813]
[1723716615619,0.14948717,58499.0,58498.0,0.01067813]
[1723716616537,0.06708717,58499.0,58498.0,0.18162413]
[1723716616705,0.016,58499.0,58498.0,0.52351613]
[1723716617116,0.016,58499.0,58498.0,0.18162413]
[1723716617311,0.016,58499.0,58498.0,0.01067813]
[1723716617494,0.06708717,58499.0,58498.0,0.01067813]
[1723716618114,0.06708717,58499.0,58498.0,0.18162413]
[1723716620132,0.06711149,58499.0,58498.0,0.01067813]
[1723716621552,0.09266724,58499.0,58498.0,0.01067813]
[1723716621775,0.016,58499.0,58498.0,0.18162413]
[1723716622299,0.06710246,58499.0,58498.0,0.18162413]
[1723716622460,0.016,58499.0,58498.0,0.18162413]
[1723716622650,0.016,58499.0,58498.0,0.01067813]
[1723716622874,0.06710246,58499.0,58498.0,0.01067813]
[1723716623684,0.016,58499.0,58498.0,0.52351613]
[1723716623839,0.016,58499.0,58498.0,0.18162413]
[1723716624270,0.06710246,58499.0,58498.0,0.18162413]
[1723716624468,0.06710829,58499.0,58498.0,0.18162413]
[1723716624671,0.06710829,58499.0,58498.0,0.01067813]
[1723716625735,0.06710829,58499.0,58498.0,0.18162413]
[1723716625942,0.06710829,58499.0,58498.0,0.01067813]
[1723716626312,0.016,58499.0,58498.0,0.01067813]
[1723716627574,0.016,58499.0,58498.0,0.86540813]
[1723716627692,0.06712037,58499.0,58498.0,0.52351613]
[1723716627891,0.06712037,58499.0,58498.0,0.01067813]
[1723716628349,0.06712037,58499.0,58498.0,0.18162413]
[1723716628350,0.016,58499.0,58498.0,0.18162413]
[1723716629303,0.09268837,58499.0,58498.0,0.18162413]
[1723716629926,0.09268837,58499.0,58498.0,0.01067813]
[1723716629927,1.18166954,58499.0,58498.0,0.01067813]
[1723716630122,0.170961,58493.0,58489.0,0.1718763]
[1723716630328,0.05113087,58491.0,58489.0,0.0009053]
[1723716630538,0.07668498,58490.0,58489.0,0.1718773]
[1723716631765,0.07668498,58490.0,58489.0,0.0009053]
[1723716632179,0.07668498,58490.0,58489.0,0.1718773]
[1723716632745,0.07768498,58490.0,58489.0,0.1718773]
[1723716633155,0.07768498,58490.0,58489.0,0.8557653]
[1723716633362,0.001,58490.0,58489.0,0.9385653]
[1723716635467,0.05215347,58490.0,58489.0,0.9385653]
[1723716636002,0.07773021,58490.0,58489.0,0.8557653]
[1723716636210,0.07776259,58490.0,58489.0,0.5138213]
[1723716636591,0.10338785,58490.0,58489.0,0.1718773]
[1723716636741,0.48252059,58490.0,58489.0,0.1718773]
[1723716636947,0.48252041,58490.0,58489.0,0.1718773]
[1723716637155,0.50801988,58490.0,58489.0,0.1718773]
[1723716637372,0.3801362,58490.0,58489.0,0.1718773]
[1723716637676,0.12901857,58490.0,58489.0,0.1718773]
[1723716637880,0.50815477,58490.0,58489.0,0.1718773]
[1723716638088,0.50815466,58490.0,58489.0,0.1718773]
[1723716638493,0.3801362,58490.0,58489.0,0.1718773]
[1723716639009,0.3801362,58490.0,58489.0,0.0009053]
[1723716640231,0.5511052,58490.0,58489.0,0.0009053]
[1723716640432,0.3801362,58490.0,58489.0,0.0009053]
[1723716640689,0.62736554,58490.0,58489.0,0.0009053]
[1723716641202,0.62736554,58490.0,58489.0,0.01798573]
[1723716641524,0.50814486,58490.0,58489.0,0.01798573]
[1723716641725,0.3801362,58490.0,58489.0,0.18895773]
[1723716641903,0.10341231,58490.0,58489.0,0.53090173]
[1723716642111,0.10340988,58490.0,58489.0,0.18895773]
[1723716642317,0.001,58490.0,58489.0,0.18895773]
[1723716642520,0.3801216,58490.0,58489.0,0.18895773]
[1723716642666,0.001,58490.0,58489.0,0.18895773]
[1723716642866,0.48254353,58490.0,58489.0,0.18895773]
[1723716643071,0.50814021,58490.0,58489.0,0.18895773]
[1723716643910,0.50814021,58490.0,58489.0,0.01798573]
[1723716644106,0.50814021,58490.0,58489.0,0.18895773]
[1723716645357,0.38012423,58490.0,58489.0,0.18895773]
[1723716645785,0.001,58490.0,58489.0,1.86728827]
[1723716645959,0.001,58490.0,58489.0,1.52534427]
[1723716646186,0.001,58490.0,58489.0,1.96928827]
[1723716646597,0.001,58490.0,58489.0,2.31123227]
[1723716647026,0.05204633,58499.0,58498.0,1.196622]
[1723716647266,0.05204633,58499.0,58498.0,1.335622]
[1723716647386,0.05204633,58499.0,58498.0,1.35344894]
[1723716648317,0.000823,58499.0,58498.0,1.35344894]
[1723716649131,0.000823,58499.0,58498.0,1.69534094]
[1723716649978,0.000823,58499.0,58498.0,1.69734094]
[1723716650362,0.000823,58499.0,58498.0,1.69934094]
[1723716650536,0.000823,58499.0,58498.0,1.69734094]
[1723716650740,0.000823,58499.0,58498.0,1.69934094]
[1723716650741,0.001823,58499.0,58498.0,1.69934094]
[1723716650940,0.002823,58499.0,58498.0,1.69934094]
[1723716651142,0.001823,58499.0,58498.0,1.88106037]
[1723716651345,0.001823,58499.0,58498.0,1.87906037]
[1723716652605,0.001823,58499.0,58498.0,1.87706037]
[1723716652937,0.001823,58499.0,58498.0,1.88906037]
[1723716653395,0.001823,58499.0,58498.0,1.87706037]
[1723716653732,0.001823,58499.0,58498.0,1.88906037]
[1723716660495,0.001823,58499.0,58498.0,1.54716837]
[1723716667599,0.001823,58499.0,58498.0,1.54807367]
[1723716669893,0.001823,58499.0,58498.0,1.66537367]
[1723716678081,0.001823,58499.0,58498.0,1.49381913]
[1723716678288,0.001823,58499.0,58498.0,1.23751913]
[1723716680679,0.001823,58499.0,58498.0,0.04089713]
[1723716680924,0.84345344,58499.0,58498.0,0.03073224]
[1723716681213,1.18533944,58499.0,58498.0,0.03073224]
[1723716681498,1.18533944,58499.0,58498.0,0.0129053]
[1723716681499,1.69221957,58499.0,58498.0,0.0129053]
[1723716681666,0.0795,58494.0,58489.0,0.3428463]
[1723716681878,0.05115512,58492.0,58490.0,0.170968]
[1723716682086,0.05115512,58492.0,58490.0,0.18894977]
[1723716682235,0.07673268,58493.0,58492.0,0.170963]
[1723716682615,0.07673268,58493.0,58492.0,0.1889382]
[1723716683028,0.07673268,58493.0,58492.0,0.0179752]
[1723716683238,0.07673268,58493.0,58491.0,0.170966]
[1723716683435,0.07673268,58493.0,58492.0,0.0179752]
[1723716683838,0.07673268,58493.0,58492.0,0.001]
[1723716684319,0.07673268,58493.0,58492.0,0.0190349]
[1723716684527,0.07673268,58493.0,58492.0,0.01452617]
[1723716684727,0.32479268,58493.0,58492.0,0.01452617]
[1723716684932,0.66671368,58493.0,58492.0,0.01452617]
[1723716685124,0.589981,58493.0,58492.0,0.01452617]
[1723716686132,0.0771,58493.0,58492.0,0.01452617]
[1723716686339,0.07675577,58494.0,58492.0,0.01903489]
[1723716686566,0.05116901,58494.0,58493.0,0.854802]
[1723716686781,0.07675577,58495.0,58494.0,1.196702]
[1723716686950,0.48141648,58497.0,58496.0,0.512854]
[1723716686951,0.05116491,58497.0,58496.0,0.512854]
[1723716687157,0.05198791,58499.0,58495.0,0.0642]
[1723716687534,0.05199483,58499.0,58498.0,0.512838]
[1723716687677,0.000823,58499.0,58498.0,0.512838]
[1723716687897,0.07757877,58499.0,58498.0,0.512838]
[1723716688096,0.07757877,58499.0,58498.0,0.53091738]
[1723716688850,0.08457877,58499.0,58498.0,0.53091738]
[1723716689291,0.38690565,58499.0,58498.0,0.54104699]
[1723716689829,0.37990565,58499.0,58498.0,0.54104699]
[1723716690025,0.37990565,58499.0,58498.0,0.88293899]
[1723716690234,0.48229884,58499.0,58498.0,0.88293899]
[1723716690455,0.000823,58499.0,58498.0,0.88293899]
[1723716690860,0.005823,58499.0,58498.0,0.88293899]
[1723716691054,0.08661825,58499.0,58498.0,0.88293899]
[1723716691256,0.08661825,58499.0,58498.0,0.87280938]
[1723716691505,0.005823,58499.0,58498.0,0.53091738]